Cogmind - Beta 16 @@@ ROGUE MODE // 2026.01.11 @ 10:42:57 // Winter2019/RPGLIKE Player: Gallgagger Result: Destroyed by H-66 Slayer with Heavy Assault Rifle Performance ------------- Evolutions (4) 2000 Regions Visited (22) 4400 Robots Destroyed (757) 3785 Value Destroyed (36034) 36034 Prototype IDs (43) 860 Alien Tech Used (0) 0 Bonus (29144) 29144 TOTAL SCORE: 76223 Bonus ------- Triggered High Security 2000 High Alert Combat Kills 22916 Follower Combat Kills 1775 Destroyed Unchained 1000 Entered Garrisons 600 Network Hubs Disabled 200 Aligned with FarCom 300 Met Imprinter 300 Acquired ECA 300 Met R17 at Cetus 500 Friendly Fire -747 Cogmind --------- Core Integrity 0/950 Matter 273/500 Energy 296/300 System Corruption 3% Temperature Warm (190) Movement Flying (22) Location -6/Hub_04(d) Parts ------- > --- POWER (3) -------- Micro Nuclear Core Light Angular Momentum Engine Cold Fusion Reactor > --- PROPULSION (5) --- Cooled Cesium-ion Thruster Cooled Nuclear Pulse Thruster Cooled Nuclear Pulse Thruster Cooled Nuclear Pulse Thruster Diametric Drive > --- UTILITY (9) ------ Gravity Neutralizer Machine Analyzer Triangulator Long-range Sensor Array Advanced Signal Interpreter Seismic Detector Kinecellerator Advanced Weapon Cycler (fused) Graphene Brace > --- WEAPON (4) ------- Enhanced Autogun Enhanced Autogun Enhanced Autogun Enhanced Autogun > --- INVENTORY (6) ---- Encrypted Comm Array Splice Drone Bay (6/6) Longsword +1 Self-destruct Interrupter (50) Self-destruct Interrupter (50) Peak State ------------ > --- POWER ------------ Micro Nuclear Core Light Angular Momentum Engine Cold Fusion Reactor > --- PROPULSION ------- Cooled Cesium-ion Thruster Cooled Nuclear Pulse Thruster Cooled Nuclear Pulse Thruster Cooled Nuclear Pulse Thruster Diametric Drive > --- UTILITY ---------- Gravity Neutralizer Machine Analyzer Triangulator Long-range Sensor Array Advanced Signal Interpreter Seismic Detector Kinecellerator Advanced Weapon Cycler Graphene Brace > --- WEAPON ----------- Enhanced Autogun Enhanced Autogun Enhanced Autogun Longsword +1 > --- INVENTORY -------- Encrypted Comm Array Splice Drone Bay Enhanced Autogun Self-destruct Interrupter Self-destruct Interrupter [Rating: 118] Favorites ----------- Power Light Nuclear Core Engine F-cell Engine Power Core Light Nuclear Core Reactor Cold Fusion Reactor Propulsion VTOL Module Flight Unit VTOL Module Utility Advanced Weapon Cycler Device Advanced Weapon Cycler Processor Machine Analyzer Hackware Authchip [Weapon] Protection Reflective Plating Weapon Enhanced Autogun Energy Gun Small Laser Ballistic Gun Enhanced Autogun Ballistic Cannon Heavy Hardcell Cannon Slashing Weapon Longsword +1 Special Melee Weapon Improved Datajack Build | -11 -10 -10 -10 -9 -8 -8 -8 -8 -8 -8 -7 -7 -7 -7 -6 -6 -6 -6 -6 -6 -6 -6 ------- Run | Yrd Mat Min Exi Min Mat Gar Mat Gar Mat Gar Fac Low Low Zio Pro Fac Was Fac Ext Cet Arc Hub Slots Evolved 17 | 2 5 . . 2 4 . . . . . 1 . . 1 . . . 2 . . . . Power 2 | . . . . . 1 . . . . . . . . . . . . 1 . . . . Propulsion 4 | 1 2 . . . . . . . . . . . . 1 . . . . . . . . Utility 8 | . 1 . . 2 3 . . . . . 1 . . . . . . 1 . . . . Weapon 3 | 1 2 . . . . . . . . . . . . . . . . . . . . . Parts Attached 74 | 6 9 2 4 1 11 1 6 . 2 1 5 . . 1 . 13 1 7 1 2 1 . Power 9 | 1 . 1 . . 1 . . . . 1 1 . . . . . . 3 . . 1 . Engine 4 | 1 . . . . . . . . . . . . . . . . . 2 . . 1 . Core 4 | . . 1 . . 1 . . . . 1 1 . . . . . . . . . . . Reactor 1 | . . . . . . . . . . . . . . . . . . 1 . . . . Propulsion 21 | . 4 . . . 3 . 1 . 2 . . . . . . 9 . 1 1 . . . Treads . | . . . . . . . . . . . . . . . . . . . . . . . Leg . | . . . . . . . . . . . . . . . . . . . . . . . Wheel . | . . . . . . . . . . . . . . . . . . . . . . . Hover . | . . . . . . . . . . . . . . . . . . . . . . . Flight 21 | . 4 . . . 3 . 1 . 2 . . . . . . 9 . 1 1 . . . Utility 24 | 2 1 1 4 1 3 1 . . . . 4 . . 1 . 3 . 3 . . . . Device 15 | 2 . 1 4 . 2 . . . . . 1 . . 1 . 2 . 2 . . . . Storage . | . . . . . . . . . . . . . . . . . . . . . . . Processor 6 | . . . . 1 . 1 . . . . 2 . . . . 1 . 1 . . . . Hackware 1 | . . . . . . . . . . . 1 . . . . . . . . . . . Protection 2 | . 1 . . . 1 . . . . . . . . . . . . . . . . . Artifact . | . . . . . . . . . . . . . . . . . . . . . . . Weapon 20 | 3 4 . . . 4 . 5 . . . . . . . . 1 1 . . 2 . . Energy Gun 2 | 1 . . . . . . . . . . . . . . . . . . . 1 . . Energy Cannon . | . . . . . . . . . . . . . . . . . . . . . . . Ballistic Gun 15 | 2 4 . . . 4 . 4 . . . . . . . . . . . . 1 . . Ballistic Cannon 1 | . . . . . . . . . . . . . . . . . 1 . . . . . Launcher . | . . . . . . . . . . . . . . . . . . . . . . . Special Weapon . | . . . . . . . . . . . . . . . . . . . . . . . Impact Weapon . | . . . . . . . . . . . . . . . . . . . . . . . Slashing Weapon 1 | . . . . . . . 1 . . . . . . . . . . . . . . . Piercing Weapon . | . . . . . . . . . . . . . . . . . . . . . . . Special Melee Weapon 1 | . . . . . . . . . . . . . . . . 1 . . . . . . Unidentified Prototypes 19 | . . 1 3 . 3 . 1 . . . . . . 1 . 4 1 3 . 2 . . Parts Lost 1 | . . . . . . . . . . . 1 . . . . . . . . . . . Power . | . . . . . . . . . . . . . . . . . . . . . . . Propulsion . | . . . . . . . . . . . . . . . . . . . . . . . Utility 1 | . . . . . . . . . . . 1 . . . . . . . . . . . Weapon . | . . . . . . . . . . . . . . . . . . . . . . . Highest Loss Streak 1 | . . . . . . . . . . . 1 . . . . . . . . . . . To Critical Strikes . | . . . . . . . . . . . . . . . . . . . . . . . Average Backups 3 | . . . 1 2 2 4 4 4 4 4 2 2 3 3 4 4 4 3 4 3 3 3 Power . | . . . . . . . . . . . . . . . . . . . . . . . Propulsion . | . . . . . . . . . . . . . . . . . . . . . . . Utility 2 | . . . 1 1 1 3 3 3 3 3 1 1 1 1 2 1 1 1 2 1 1 1 Weapon . | . . . . 1 1 1 1 1 1 1 1 1 1 1 1 1 1 1 1 1 1 1 Tool/Special . | . . . . . . . . . . . . . . . . . . . . . . . Unused Backups 8 | . . . 6 . . . . . . . . . . . . . . 1 . . . 1 Power 3 | . . . 3 . . . . . . . . . . . . . . . . . . . Propulsion . | . . . . . . . . . . . . . . . . . . . . . . . Utility 4 | . . . 3 . . . . . . . . . . . . . . 1 . . . . Weapon . | . . . . . . . . . . . . . . . . . . . . . . . Tool/Special 1 | . . . . . . . . . . . . . . . . . . . . . . 1 Average Slot Usage (%) 98 | . 84 100 100 99 99 100 100 100 100 100 98 100 100 96 94 97 99 99 99 95 100 100 Engine 1 | . 12 3 . . . . . . . . . . . . . . . 1 4 4 4 4 Core 8 | . . 5 9 8 7 11 11 11 11 11 11 11 11 10 10 10 10 4 4 4 3 4 Reactor 1 | . . . . . . . . . . . . . . . . . . 4 4 4 3 4 Flight 23 | . 18 36 36 34 25 23 23 23 23 23 22 22 22 21 21 23 26 24 23 23 23 23 Device 27 | . 12 9 9 18 28 23 26 29 29 29 31 33 33 31 31 31 31 33 32 28 33 33 Processor 7 | . . . . . 5 10 7 5 5 5 5 11 11 10 10 10 10 9 9 9 9 9 Protection 2 | . 5 9 8 . 4 5 5 5 5 5 3 . . . . . . . . . . . Ballistic Gun 22 | . 28 36 36 34 25 23 22 23 23 23 22 22 22 19 19 20 20 19 19 19 19 18 Peak Build Rating 118 | 6 19 27 30 42 63 65 72 68 74 72 76 76 76 82 81 104 109 115 115 116 117 118 Average Rating 74 | 3 10 20 22 31 53 64 67 68 69 70 73 75 76 78 77 85 99 109 114 111 115 115 On Entrance 67 | . 4 19 21 30 38 63 65 68 68 70 72 75 76 76 81 77 99 99 115 111 116 115 Avg Prop Armor Cover (%) . | . . . . . . . . . . . . . . . . . . . . . . . Naked Turns . | . . . . . . . . . . . . . . . . . . . . . . . Heaviest Build 53 | 7 19 21 24 27 35 33 33 33 33 38 38 31 31 31 31 31 31 52 52 52 52 53 Greatest Support 65 | 13 26 26 26 38 39 39 40 40 42 42 42 42 42 42 42 63 52 60 65 53 53 65 Greatest Overweight (x) 1 | . . . . . . . 1 . . . . . . . . . . . 1 . . . Average Overweight (x) . | . . . . . . . . . . . . . . . . . . . . . . . Largest Inventory Capacity 6 | 1 1 2 3 4 4 5 5 5 5 5 5 5 5 6 6 6 6 6 6 6 6 6 Average Capacity 4 | 1 1 1 2 3 4 4 5 5 5 5 5 5 5 5 6 6 6 6 6 6 6 6 Most Carried 6 | 1 1 2 3 4 4 5 5 5 5 5 5 5 4 6 6 6 6 6 6 6 6 5 Average Carried 4 | . . 1 2 3 3 4 4 4 5 5 4 2 3 4 6 6 5 5 6 5 5 5 Final Capacity 6 | 1 1 2 3 4 4 5 5 5 5 5 5 5 5 6 6 6 6 6 6 6 6 6 Final Carried 6 | 1 1 2 3 3 4 5 4 5 5 5 2 3 3 6 6 6 6 6 6 5 5 5 Class Distribution -------------------- 59% | Scavenger-Sprinter 23% | Scavenger-Scout 10% | Sprinter Dominant Class ---------------- Sprinter | -10/Materials Sprinter | -10/Mines Sprinter | -10/Exiles Sprinter | -9/Mines Scavenger-Sprinter | -8/Materials Scavenger-Sprinter | -8/Garrison Scavenger-Sprinter | -8/Materials Scavenger-Sprinter | -8/Garrison Scavenger-Sprinter | -8/Materials Scavenger-Sprinter | -8/Garrison Scavenger-Sprinter | -7/Factory Scavenger-Sprinter | -7/Lower Caves Scavenger-Sprinter | -7/Lower Caves Scavenger-Sprinter | -7/Zion Scavenger-Sprinter | -6/Proximity Caves Scavenger-Sprinter | -6/Factory Scavenger-Sprinter | -6/Waste Scavenger-Scout | -6/Factory Scavenger-Scout | -6/Extension Scavenger-Scout | -6/Cetus Scavenger-Scout | -6/Archives Scavenger-Scout | -6/Hub_04(d) Resources | -11 -10 -10 -10 -9 -8 -8 -8 -8 -8 -8 -7 -7 -7 -7 -6 -6 -6 -6 -6 -6 -6 -6 ----------- Run | Yrd Mat Min Exi Min Mat Gar Mat Gar Mat Gar Fac Low Low Zio Pro Fac Was Fac Ext Cet Arc Hub Matter Collected 28588 | 287 687 270 450 718 1978 . 1863 1304 1140 1608 5073 144 258 . 796 2680 366 5465 1786 295 656 764 Remotely . | . . . . . . . . . . . . . . . . . . . . . . . Salvage Created 31649 | 138 1034 317 48 757 1736 . 2284 1205 2203 1150 5855 318 263 . 1259 3296 . 5557 2414 339 638 838 Parts 1700 | 12 58 16 4 50 125 . 138 84 141 105 200 16 24 . 60 161 . 290 117 27 34 38 Haulers Intercepted 26 | . . . . . 6 . 4 . 3 . 2 . . . . 6 . 5 . . . . Recyclers Shooed 6 | 1 . . . . . . . . . . . . . . . 4 . . 1 . . . Parts Field Recycled . | . . . . . . . . . . . . . . . . . . . . . . . Retrieved Matter . | . . . . . . . . . . . . . . . . . . . . . . . Parts Self-Destructed 97 | . . . . . . . . . . . . 16 17 . 64 . . . . . . . Prevented 8 | . . . . . . . . . . . . . . . 8 . . . . . . . Parts Restored . | . . . . . . . . . . . . . . . . . . . . . . . Kills | -11 -10 -10 -10 -9 -8 -8 -8 -8 -8 -8 -7 -7 -7 -7 -6 -6 -6 -6 -6 -6 -6 -6 ------- Run | Yrd Mat Min Exi Min Mat Gar Mat Gar Mat Gar Fac Low Low Zio Pro Fac Was Fac Ext Cet Arc Hub Combat Hostiles Destroyed 660 | . 31 9 4 19 47 . 50 34 40 41 124 8 7 . 24 54 . 109 37 8 4 10 Guns 660 | . 31 9 4 19 47 . 50 34 40 41 124 8 7 . 24 54 . 109 37 8 4 10 Classes Destroyed 26 | 2 3 . 1 4 6 . 1 1 2 1 . . 1 . 3 . . 1 . . . . Worker 12 | . . . . . 1 . . . 2 . 1 . . . . 2 . 5 . . . 1 Builder 8 | . 1 1 . . . . . . 1 . . . . . . . . 1 3 . . 1 Tunneler 6 | 4 . . . 1 . . . . . . . . . . . . . 1 . . . . Hauler 26 | . . . . . 6 . 4 . 3 . 2 . . . . 6 . 5 . . . . Recycler 10 | 1 . . . 2 . . . . 1 . . . . . . . . 3 3 . . . Minesweeper 1 | . . . . . . . . . . . . . . . 1 . . . . . . . Mechanic 10 | . . . . 1 . . . . . . 8 . . . . . . 1 . . . . Operator 13 | . . . . . . . . . 2 . . . . . . 1 . 1 . . 9 . Drone 2 | . . . . . . . . . . . . . . . 2 . . . . . . . Watcher 10 | . . . . . . . . . 1 . 2 . . . . . . 3 . 2 . 2 Swarmer 61 | . 3 3 . . 8 . . 12 3 6 3 4 2 . 4 6 . 5 2 . . . Cutter 8 | . . . . . . . 2 2 2 . . . . . . . . 2 . . . . Saboteur 5 | . . . . . . . . . . . . . . . . . . 3 2 . . . Grunt 288 | . 28 6 . 15 23 . 34 6 20 15 53 3 1 . 10 26 . 32 13 . . 3 Brawler 26 | . . . . 1 1 . 1 . . 1 6 . . . 2 1 . 9 4 . . . Duelist 24 | . . . . 1 2 . 4 . 1 1 8 . . . . 1 . 5 1 . . . Protector 23 | . . . . 2 . . 1 . . . 7 . . . . 3 . 8 2 . . . Sentry 91 | . . . . . 9 . 6 7 11 7 16 . 1 . 2 2 . 9 10 . 4 7 Demolisher 5 | . . . . . 1 . . . . . 2 . . . . . . 2 . . . . Specialist 6 | . . . . . . . . . . 1 2 . . . . 3 . . . . . . Hunter 59 | . . . . . 2 . 1 2 2 5 17 1 1 . 3 6 . 19 . . . . Programmer 41 | . . . . . . . . 5 . 5 9 . 2 . . 6 . 13 1 . . . Heavy 5 | . . . . . 1 . 1 . 1 . 1 . . . . . . 1 . . . . Behemoth 3 | . . . . . . . . . . . . . . . 1 . . 1 1 . . . Cetus Guard 8 | . . . . . . . . . . . . . . . . . . . . 8 . . Assembled 3 | . . . 3 . . . . . . . . . . . . . . . . . . . Surgeon 1 | . . . . . . . . . . . . . . . . . . 1 . . . . Wasp 2 | . . . . . . . . . . . . . . . . . . 2 . . . . Mutant 1 | . . . . . . . . . . . . . 1 . . . . . . . . . Best Kill Streak 60 | 3 5 6 3 7 10 . 31 12 14 11 60 5 5 . 5 21 . 32 16 4 14 8 Combat Bots Only 53 | . 5 6 3 7 7 . 31 12 11 11 53 5 5 . 5 18 . 32 14 4 4 6 Max Kills in Single Turn 3 | 1 2 2 1 1 2 . 2 3 2 2 2 3 1 . 2 2 . 3 2 1 1 2 Gunslinging 2 | . 1 . . . 1 . 1 2 1 1 1 2 . . 1 1 . 1 1 . . 1 Exploded . | . . . . . . . . . . . . . . . . . . . . . . . Melee . | . . . . . . . . . . . . . . . . . . . . . . . Uniques/NPCs Destroyed 2 | . . . 1 . . . . . . . . . . . . . . . 1 . . . 8R-AWN (-10/Exiles) CL-0N3 (-6/Extension) Combat | -11 -10 -10 -10 -9 -8 -8 -8 -8 -8 -8 -7 -7 -7 -7 -6 -6 -6 -6 -6 -6 -6 -6 -------- Run | Yrd Mat Min Exi Min Mat Gar Mat Gar Mat Gar Fac Low Low Zio Pro Fac Was Fac Ext Cet Arc Hub Hostile Shots Fired 1796 | . 72 19 48 26 111 . 72 51 42 49 334 8 22 . 45 192 . 338 207 32 5 123 Missed 808 | . 21 8 12 12 40 . 32 25 24 17 170 3 6 . 19 92 . 145 117 15 3 47 Hits 988 | . 51 11 36 14 71 . 40 26 18 32 164 5 16 . 26 100 . 193 90 17 2 76 Melee 8 | . . . . . . . 1 . . . 3 . . . . . . 1 3 . . . Projectile 980 | . 51 11 36 14 71 . 39 26 18 32 161 5 16 . 26 100 . 192 87 17 2 76 AOE 9 | . . . . . 2 . . 1 . . 1 . . . . . . 4 . . . 1 Critical Strikes 53 | . . . 18 1 3 . 3 . 2 1 2 . 1 . . 3 . 9 2 4 . 4 Actively Blocked 31 | . . . . . . . 3 . 2 1 2 . 1 . . 3 . 9 2 4 . 4 Part Disruptions 3 | . . . . . . . . . . . 2 . . . . . . 1 . . . . Damage Taken 15578 | . 561 126 608 170 1055 . 635 352 259 454 2116 80 307 . 512 1718 23 3708 1055 448 47 1344 Core 12187 | . 421 98 433 128 776 . 481 256 193 326 1573 64 254 . 422 1381 18 3029 840 370 36 1088 Absorbed by Shields 210 | . . . . . . . . . . . . . . . . . . . 169 . . 41 Redirected to Core 10130 | . 343 77 392 128 693 . 432 216 166 282 1325 51 187 . 332 1191 18 2375 697 293 36 896 Ignored by Resistances 310 | . . . . . 88 . 56 12 25 24 105 . . . . . . . . . . . Regen/Repaired (Parts) 147 | . . . . . 11 . . . . . . . . . . 18 118 . . . . . Core Remaining (%) 93 | 100 . . . 100 . . . . . 97 . . . . 76 . . . . . . . Volleys Fired 1740 | 9 65 15 25 43 113 12 103 69 73 97 313 9 16 . 51 150 21 338 109 33 30 46 Largest 4 | 2 4 4 4 4 4 4 4 4 4 4 4 4 4 . 4 4 4 4 4 4 4 4 Hottest 100 | 60 92 92 92 92 100 100 100 100 100 100 100 100 100 . 100 100 100 100 100 100 100 100 Shots Fired 6779 | 18 173 60 97 172 452 15 407 276 292 388 1244 36 63 . 189 600 84 1341 436 132 120 184 Gun 6779 | 18 173 60 97 172 452 15 407 276 292 388 1244 36 63 . 189 600 84 1341 436 132 120 184 Cannon . | . . . . . . . . . . . . . . . . . . . . . . . Launcher . | . . . . . . . . . . . . . . . . . . . . . . . Special . | . . . . . . . . . . . . . . . . . . . . . . . Kinetic 6751 | 9 154 60 97 172 452 15 407 276 292 388 1244 36 63 . 189 600 84 1341 436 132 120 184 Thermal 28 | 9 19 . . . . . . . . . . . . . . . . . . . . . Explosive . | . . . . . . . . . . . . . . . . . . . . . . . Electromagnetic . | . . . . . . . . . . . . . . . . . . . . . . . Robot Hit Streak 61 | 6 18 14 9 12 34 . 15 23 46 52 61 10 15 . 18 26 37 28 38 35 15 21 Robot Miss Streak 6 | 1 4 5 3 5 5 . 4 5 2 4 6 3 5 . 4 3 2 4 3 1 3 5 Penetration Max . | . . . . . . . . . . . . . . . . . . . . . . . Secondary Targets 213 | . 6 . 1 9 11 . 17 11 12 12 44 2 1 . 5 13 . 43 20 4 . 2 Max Gunslinging Chain 2 | . 1 . 1 1 1 . 2 2 2 2 2 2 1 . 1 1 . 1 2 1 . 1 Shots Hit Robots 4702 | 13 117 29 64 108 277 . 280 143 214 197 924 23 44 . 130 444 74 950 342 115 83 131 Core Hits 1795 | 6 48 14 20 43 99 . 115 56 88 78 346 13 18 . 56 168 9 362 141 40 38 37 Critical Kills 18 | 1 . . . . . . 1 1 . 1 5 . . . 2 1 . 4 . 1 . 1 Critical Parts Destroyed 33 | . 2 . 1 . 4 . . 1 . 2 8 . . . . 6 . 6 1 1 . 1 Critical Strikes 53 | 1 2 . 1 . 4 . 1 2 . 3 13 . . . 2 7 1 11 1 2 . 2 Destroy 53 | 1 2 . 1 . 4 . 1 2 . 3 13 . . . 2 7 1 11 1 2 . 2 Melee Attacks 29 | . . . . . . . 2 . 1 . . . . 1 . 14 . . . . . 11 Impact . | . . . . . . . . . . . . . . . . . . . . . . . Slashing 28 | . . . . . . . 2 . 1 . . . . 1 . 13 . . . . . 11 Piercing . | . . . . . . . . . . . . . . . . . . . . . . . Sneak Attacks 2 | . . . . . . . . . . . . . . . . 1 . . . . . 1 Combat Hostiles . | . . . . . . . . . . . . . . . . . . . . . . . Follow-up Attacks . | . . . . . . . . . . . . . . . . . . . . . . . Damage Inflicted 97600 | 154 1739 480 1023 1647 5011 . 5425 2925 4406 4165 20192 506 1062 . 2757 9521 1618 20411 7142 2670 1976 2770 Guns 97005 | 154 1739 480 1023 1647 5011 . 5425 2925 4406 4165 20192 506 1062 . 2757 9458 1618 19975 7142 2670 1976 2674 Cannons . | . . . . . . . . . . . . . . . . . . . . . . . Explosions 499 | . . . . . . . . . . . . . . . . 63 . 436 . . . . Melee 96 | . . . . . . . . . . . . . . . . . . . . . . 96 Ramming . | . . . . . . . . . . . . . . . . . . . . . . . Kinetic 96716 | 51 1553 480 1023 1647 5011 . 5425 2925 4406 4165 20192 506 1062 . 2757 9458 1618 19975 7142 2670 1976 2674 Thermal 374 | 103 186 . . . . . . . . . . . . . . . . 85 . . . . Explosive 351 | . . . . . . . . . . . . . . . . . . 351 . . . . Electromagnetic 63 | . . . . . . . . . . . . . . . . 63 . . . . . . Impact . | . . . . . . . . . . . . . . . . . . . . . . . Slashing 96 | . . . . . . . . . . . . . . . . . . . . . . 96 Piercing . | . . . . . . . . . . . . . . . . . . . . . . . Highest Corruption 5 | . . . . . . . . . . . 2 2 5 5 . . . 4 1 . . 3 Average Corruption 2 | . . . . . . . . . . . 1 2 3 5 . . . 2 1 . . 2 Corruption Purged 5 | . . . . . . . . . . . . . . . . . . 4 1 . . . Corruption Blocked . | . . . . . . . . . . . . . . . . . . . . . . . Effects 25 | . . . . . . . . . . . 2 4 6 . . . . 11 . . . 2 Message Errors 4 | . . . . . . . . . . . . 1 1 . . . . 2 . . . . Matter Fused 4 | . . . . . . . . . . . . . 1 . . . . 3 . . . . Heat Flow Errors 5 | . . . . . . . . . . . 1 1 . . . . . 2 . . . 1 Energy Discharges 1 | . . . . . . . . . . . . 1 . . . . . . . . . . Parts Fused 2 | . . . . . . . . . . . . . 1 . . . . . . . . 1 Data Loss (minor) 2 | . . . . . . . . . . . . . 2 . . . . . . . . . Data Loss (major) 1 | . . . . . . . . . . . . 1 . . . . . . . . . . Weapon Failures 6 | . . . . . . . . . . . 1 . 1 . . . . 4 . . . . Overload Shots . | . . . . . . . . . . . . . . . . . . . . . . . Overflow Damage 61 | . . . . . . . . . . . . . . . . . . 61 . . . . Projectiles . | . . . . . . . . . . . . . . . . . . . . . . . Explosions 61 | . . . . . . . . . . . . . . . . . . 61 . . . . Melee . | . . . . . . . . . . . . . . . . . . . . . . . Knockbacks . | . . . . . . . . . . . . . . . . . . . . . . . Impact . | . . . . . . . . . . . . . . . . . . . . . . . Kinetic . | . . . . . . . . . . . . . . . . . . . . . . . Secondary . | . . . . . . . . . . . . . . . . . . . . . . . Self-Inflicted Damage . | . . . . . . . . . . . . . . . . . . . . . . . Shots . | . . . . . . . . . . . . . . . . . . . . . . . Rammed . | . . . . . . . . . . . . . . . . . . . . . . . Targets Rammed . | . . . . . . . . . . . . . . . . . . . . . . . Kicked . | . . . . . . . . . . . . . . . . . . . . . . . Crushed . | . . . . . . . . . . . . . . . . . . . . . . . Highest Temperature 384 | . 30 29 40 73 179 56 384 131 105 114 233 128 87 . 96 184 84 96 145 84 115 234 Average Temperature 47 | . 9 10 11 23 30 36 78 50 49 47 59 47 46 . 33 48 44 37 49 43 50 88 Received Heat Transfer 3281 | . 291 48 40 111 468 . 252 54 108 108 489 27 27 . 111 297 . 450 300 18 . 82 Effects 1 | . . . . . . . 1 . . . . . . . . . . . . . . . Matter Decay 1 | . . . . . . . 1 . . . . . . . . . . . . . . . Siege Activations . | . . . . . . . . . . . . . . . . . . . . . . . Martial Activations . | . . . . . . . . . . . . . . . . . . . . . . . Shielding Activations . | . . . . . . . . . . . . . . . . . . . . . . . Robots Disrupted . | . . . . . . . . . . . . . . . . . . . . . . . Combat Hostiles . | . . . . . . . . . . . . . . . . . . . . . . . Robots Corrupted . | . . . . . . . . . . . . . . . . . . . . . . . Combat Hostiles . | . . . . . . . . . . . . . . . . . . . . . . . Parts Fried 2 | . . . . . . . . . . . . . . . . . . 2 . . . . Impact Corruptions . | . . . . . . . . . . . . . . . . . . . . . . . Robots Melted . | . . . . . . . . . . . . . . . . . . . . . . . Combat Hostiles . | . . . . . . . . . . . . . . . . . . . . . . . Parts Melted 2 | 2 . . . . . . . . . . . . . . . . . . . . . . Heat Transferred 675 | 225 400 . . . . . . . . . . . . . . . . 50 . . . . Parts Sabotaged 3 | . . . . . . . . . . . . . . . . . . . 3 . . . Parts Stolen . | . . . . . . . . . . . . . . . . . . . . . . . Parts Stripped . | . . . . . . . . . . . . . . . . . . . . . . . Power Chain Reactions . | . . . . . . . . . . . . . . . . . . . . . . . Alert | -11 -10 -10 -10 -9 -8 -8 -8 -8 -8 -8 -7 -7 -7 -7 -6 -6 -6 -6 -6 -6 -6 -6 ------- Run | Yrd Mat Min Exi Min Mat Gar Mat Gar Mat Gar Fac Low Low Zio Pro Fac Was Fac Ext Cet Arc Hub Maximum Alert Level 5 | . 3 2 . 1 4 5 5 5 5 5 5 . . . . 5 2 5 5 5 3 2 Low Security (%) 6 | 100 46 . . 62 6 . . . . . . . . . . . . . . . . . Level 1 6 | . 11 36 . 37 5 . . . . . . . . . . 20 . 1 . . . 18 Level 2 10 | . 29 63 . . 8 . . . . . . . . . . 30 100 . . . . 81 Level 3 16 | . 12 . . . 47 8 66 . 46 . . . . . . 37 . 8 . . 100 . Level 4 18 | . . . . . 32 72 17 30 40 12 12 . . . . 9 . 10 . . . . Level 5 23 | . . . . . . 19 16 69 4 87 . . . . . 2 . 1 86 100 . . High Security 18 | . . . . . . . . . 8 . 87 . . . . . . 76 13 . . . Max Security . | . . . . . . . . . . . . . . . . . . . . . . . Sterilizations 4 | . . . . . 1 . 1 . . . 1 . . . . . . 1 . . . . Peak Influence 5203 | 10 820 477 . 357 1356 1898 1809 2177 1977 2868 4678 . . . . 1609 569 5203 3428 2042 965 624 Initial 2549 | . . 317 . . 131 872 924 1165 1060 1285 1505 . . . . 364 561 359 2549 1919 810 323 Average 1647 | 3 325 415 . 146 871 1382 1173 1762 1229 2206 2817 . . . . 746 548 3467 2425 1989 926 497 Influence Increases 24188 | 25 1184 240 . 540 1677 1026 1535 1012 1509 1623 3413 190 130 . 608 1961 33 5234 1453 178 185 432 Destroy 0b10 Robot/C 14060 | . 620 180 . 340 1060 . 1060 680 880 880 2500 160 120 . 500 1100 . 2720 820 160 80 200 Destroy 0b10 Robot/NC 650 | 25 5 5 . 30 40 . 35 . 50 . 100 . . . 15 65 . 160 45 10 45 20 Destroy Leader 2354 | . 130 40 . 40 294 . 250 30 238 50 358 30 10 . 60 220 . 438 92 . . 74 Allied During Kill 1894 | . . . . 100 140 . 46 . 68 160 4 . . . 33 52 . 1182 100 . . 9 Successful Hack 217 | . 11 . . . 18 16 3 12 20 18 24 . . . . 57 . 12 6 8 . 12 Select Force Hacks 660 | . 310 . . . 60 . 30 . 230 . . . . . . 30 . . . . . . Disable Machine 660 | . 15 15 . 15 30 . 15 15 15 15 30 . . . . 60 . 330 30 . 60 15 Anti-Garrison Action 1600 | . . . . . . 1000 . 200 . 400 . . . . . . . . . . . . Destroy Structure 383 | . 3 . . . 5 10 6 60 8 100 7 . . . . 17 33 122 . . . 12 Advance Influence 150 | . . . . . . . . . . . . . . . . 150 . . . . . . Partial Spotted 300 | . 30 . . 15 30 . 45 15 . . 15 . . . . 30 . 45 30 . . 45 Lose Combat Pursuer 1260 | . 60 . . . . . 45 . . . 375 . . . . 180 . 225 330 . . 45 Influence Decreases 23583 | 25 370 607 447 201 674 470 1640 628 1709 732 1603 1892 788 2318 266 698 1124 545 3228 1579 1287 752 Entered New Map 18321 | . . 497 447 . 208 470 974 628 1117 692 1363 1732 566 2318 . 128 1044 155 2654 1509 1217 602 Time Decay 3862 | 25 370 110 . 201 356 . 286 . 262 . 70 160 222 . 206 510 80 180 534 70 70 150 Lost Part 10 | . . . . . . . . . . . 10 . . . . . . . . . . . Lost Ally 790 | . . . . . 110 . 80 . 30 40 160 . . . 60 60 . 210 40 . . . Purge Threat 600 | . . . . . . . 300 . 300 . . . . . . . . . . . . . Squads Dispatched 173 | . 11 . . 4 13 . 12 . 14 . 43 . . . . 19 . 35 16 . . 6 Investigation 37 | . 10 . . 1 3 . 4 . 8 . . . . . . 6 . 2 1 . . 2 Extermination 4 | . . . . . . . . . . . . . . . . 4 . . . . . . Reinforcement 25 | . 1 . . . 3 . 4 . 2 . 2 . . . . 4 . 7 1 . . 1 Assault 78 | . . . . 3 . . 3 . 1 . 32 . . . . . . 25 14 . . . Garrison 29 | . . . . . 7 . 1 . 3 . 9 . . . . 5 . 1 . . . 3 Intercept . | . . . . . . . . . . . . . . . . . . . . . . . Searches Triggered . | . . . . . . . . . . . . . . . . . . . . . . . Unchained Authorized 2 | . . . . . . . . . . . . . . . . . . . 1 . . 1 Construction Impeded 3 | . . . . . . . . . . . 1 . . . . 1 . 1 . . . . Haulers Reinforced 3 | . . . . . . . . . . . . . . . . . . 3 . . . . Active Scanning Responses . | . . . . . . . . . . . . . . . . . . . . . . . Cargo Convoy Interrupts 1 | . . . . . . . . . . . . . . . . 1 . . . . . . Stealth | -11 -10 -10 -10 -9 -8 -8 -8 -8 -8 -8 -7 -7 -7 -7 -6 -6 -6 -6 -6 -6 -6 -6 --------- Run | Yrd Mat Min Exi Min Mat Gar Mat Gar Mat Gar Fac Low Low Zio Pro Fac Was Fac Ext Cet Arc Hub Distress Signals 32 | . . . . 1 7 . 8 . 2 . 3 . . . . 1 . 3 3 2 . 2 Communications Jammed . | . . . . . . . . . . . . . . . . . . . . . . . Distress Signals . | . . . . . . . . . . . . . . . . . . . . . . . Times Spotted 985 | . 34 9 5 23 69 . 72 34 61 41 185 7 6 . 22 75 6 168 114 10 13 31 Peak Tracking Total 38 | . 5 3 11 5 8 . 12 7 7 4 25 3 3 . 5 22 3 13 38 5 1 13 Tactical Retreats 31 | . 2 . 1 . . . 1 . . . 10 . . . . 4 . 8 4 . . 1 Traps | -11 -10 -10 -10 -9 -8 -8 -8 -8 -8 -8 -7 -7 -7 -7 -6 -6 -6 -6 -6 -6 -6 -6 ------- Run | Yrd Mat Min Exi Min Mat Gar Mat Gar Mat Gar Fac Low Low Zio Pro Fac Was Fac Ext Cet Arc Hub Traps Triggered 31 | . . . . . 1 1 1 7 1 9 . . . . . 4 . 1 2 . . 4 Indirectly . | . . . . . . . . . . . . . . . . . . . . . . . Trap Hack Attempts . | . . . . . . . . . . . . . . . . . . . . . . . Triggered . | . . . . . . . . . . . . . . . . . . . . . . . Disarmed . | . . . . . . . . . . . . . . . . . . . . . . . Reprogrammed . | . . . . . . . . . . . . . . . . . . . . . . . Reused . | . . . . . . . . . . . . . . . . . . . . . . . Traps Extracted . | . . . . . . . . . . . . . . . . . . . . . . . Installed . | . . . . . . . . . . . . . . . . . . . . . . . Triggered . | . . . . . . . . . . . . . . . . . . . . . . . Machines | -11 -10 -10 -10 -9 -8 -8 -8 -8 -8 -8 -7 -7 -7 -7 -6 -6 -6 -6 -6 -6 -6 -6 ---------- Run | Yrd Mat Min Exi Min Mat Gar Mat Gar Mat Gar Fac Low Low Zio Pro Fac Was Fac Ext Cet Arc Hub Machines Disabled 68 | . 1 1 4 1 2 4 1 4 1 8 2 . 2 . . 4 . 25 3 . 4 1 Max in Single Turn 9 | . 1 1 2 1 1 1 1 1 1 1 1 . 1 . . 1 . 9 1 . 1 1 Garrison Access 1 | . . . . . . . . . . . . . . . . . . 1 . . . . Garrison Relay 13 | . . . . . . 4 . 3 . 6 . . . . . . . . . . . . Network Hub 1 | . . . . . . . . . . . . . . . . . . . . . . 1 Machines Repaired . | . . . . . . . . . . . . . . . . . . . . . . . Machines Dismantled . | . . . . . . . . . . . . . . . . . . . . . . . Machines Sabotaged 9 | . 5 . . . . . . . 4 . . . . . . . . . . . . . Overloaded Fab Kills . | . . . . . . . . . . . . . . . . . . . . . . . Hacking | -11 -10 -10 -10 -9 -8 -8 -8 -8 -8 -8 -7 -7 -7 -7 -6 -6 -6 -6 -6 -6 -6 -6 --------- Run | Yrd Mat Min Exi Min Mat Gar Mat Gar Mat Gar Fac Low Low Zio Pro Fac Was Fac Ext Cet Arc Hub Machines Accessed 89 | . 11 1 1 1 10 1 11 3 13 4 2 . 3 1 . 11 . 4 3 3 1 5 Terminals 59 | . 8 . . 1 5 1 9 3 10 4 1 . . . . 6 . 1 3 3 . 4 Fabricators 5 | . . . . . . . . . . . 1 . . . . 3 . 1 . . . . Repair Stations 4 | . 1 . . . 1 . . . 1 . . . . . . 1 . . . . . . Recycling Units 6 | . 2 . . . 2 . 1 . 1 . . . . . . . . . . . . . Scanalyzers 3 | . . . . . 1 . . . . . . . . . . 1 . 1 . . . . Garrison Access 5 | . . . . . 1 . 1 . 1 . . . . . . . . 1 . . . 1 Total Hacks 225 | . 16 1 1 2 16 2 30 7 39 10 4 . 8 4 . 28 . 9 4 8 25 11 Successful 131 | . 13 1 1 . 9 1 11 1 25 2 3 . 8 4 . 15 . 5 2 2 25 3 Failed 94 | . 3 . . 2 7 1 19 6 14 8 1 . . . . 13 . 4 2 6 . 8 Catastrophic 18 | . 1 . . 2 1 . 5 . 1 2 . . . . . 2 . 1 1 1 . 1 Database Lockouts . | . . . . . . . . . . . . . . . . . . . . . . . Manual 114 | . 17 . 1 2 12 . 20 . 30 . 2 . . . . 19 . 2 2 1 . 6 Terminals 146 | . 13 . . 2 10 2 27 7 36 10 2 . . . . 15 . 2 4 8 . 8 Fabricators 15 | . . . . . . . . . . . 2 . . . . 10 . 3 . . . . Repair Stations 5 | . 1 . . . 1 . . . 1 . . . . . . 2 . . . . . . Recycling Units 7 | . 2 . . . 2 . 2 . 1 . . . . . . . . . . . . . Scanalyzers 5 | . . . . . 2 . . . . . . . . . . 1 . 2 . . . . Garrison Access 8 | . . . . . 1 . 1 . 1 . . . . . . . . 2 . . . 3 Terminal Hacks 64 | . 2 1 1 . . 1 4 1 10 2 . . 8 4 . 1 . . 2 2 25 . Record 32 | . . . . . . . . . . . . . 6 . . . . . . 1 25 . Part Schematic 4 | . . . . . . . . . . . . . . 4 . . . . . . . . Robot Schematic 1 | . . . . . . . . . . . . . . . . 1 . . . . . . Robot Analysis 7 | . 2 . . . . . . . 5 . . . . . . . . . . . . . Open Door 7 | . . 1 . . . . . . . 1 . . 2 . . . . . 2 1 . . Emergency Access Points 2 | . . . . . . . . 1 . 1 . . . . . . . . . . . . Terminal Index 1 | . . . . . . . . . 1 . . . . . . . . . . . . . Alert Level 3 | . . . . . . . 2 . 1 . . . . . . . . . . . . . Unreport Threat 4 | . . . . . . . 2 . 2 . . . . . . . . . . . . . Locate Traps 1 | . . . . . . . . . 1 . . . . . . . . . . . . . Security Stations 1 | . . . . . . 1 . . . . . . . . . . . . . . . . Proto ID Catalog 1 | . . . 1 . . . . . . . . . . . . . . . . . . . Fabricator Hacks 11 | . . . . . . . . . . . 2 . . . . 7 . 2 . . . . Network Status 1 | . . . . . . . . . . . . . . . . 1 . . . . . . Load Schematic 5 | . . . . . . . . . . . 1 . . . . 3 . 1 . . . . Build 5 | . . . . . . . . . . . 1 . . . . 3 . 1 . . . . Repair Station Hacks . | . . . . . . . . . . . . . . . . . . . . . . . Recycling Unit Hacks . | . . . . . . . . . . . . . . . . . . . . . . . Scanalyzer 4 | . . . . . 2 . . . . . . . . . . . . 2 . . . . Insert Component 2 | . . . . . 1 . . . . . . . . . . . . 1 . . . . Analyze 2 | . . . . . 1 . . . . . . . . . . . . 1 . . . . Garrison Access Hacks 4 | . . . . . 1 . 1 . 1 . . . . . . . . 1 . . . . Unlock Access 3 | . . . . . 1 . 1 . 1 . . . . . . . . . . . . . Seal Access 1 | . . . . . . . . . . . . . . . . . . 1 . . . . Unauthorized Hacks 48 | . 11 . . . 6 . 6 . 14 . 1 . . . . 7 . . . . . 3 Terminals 36 | . 8 . . . 3 . 5 . 12 . 1 . . . . 4 . . . . . 3 Assimilate 4 | . . . . . 1 . . . 3 . . . . . . . . . . . . . Botnet 20 | . 2 . . . 1 . 5 . 4 . 1 . . . . 4 . . . . . 3 Disrupt 1 | . . . . . 1 . . . . . . . . . . . . . . . . . Sabotage 11 | . 6 . . . . . . . 5 . . . . . . . . . . . . . Fabricators 1 | . . . . . . . . . . . . . . . . 1 . . . . . . Haulers 1 | . . . . . . . . . . . . . . . . 1 . . . . . . Repair Stations 4 | . 1 . . . 1 . . . 1 . . . . . . 1 . . . . . . Patch 4 | . 1 . . . 1 . . . 1 . . . . . . 1 . . . . . . Recycling Units 6 | . 2 . . . 2 . 1 . 1 . . . . . . . . . . . . . Tunnel 6 | . 2 . . . 2 . 1 . 1 . . . . . . . . . . . . . Scanalyzers 1 | . . . . . . . . . . . . . . . . 1 . . . . . . Extract 1 | . . . . . . . . . . . . . . . . 1 . . . . . . Garrison Access . | . . . . . . . . . . . . . . . . . . . . . . . Data Cores Recovered 3 | . . . . . . . 1 . 1 . . . . . . 1 . . . . . . Used 2 | . . . . . . . 1 . 1 . . . . . . . . . . . . . Hacking Detections 54 | . 2 . . 1 5 1 9 3 7 4 1 . . . . 9 . 4 1 3 . 4 Full Trace Events 17 | . 1 . . 1 . . 3 1 1 2 . . . . . 4 . 1 1 . . 2 Feedback Events . | . . . . . . . . . . . . . . . . . . . . . . . Feedback Blocked . | . . . . . . . . . . . . . . . . . . . . . . . Robot Schematics Acquired 55 | . . . . . . . . . . . . . . 4 . 1 . . 50 . . . Robots Built 8 | . . . . . . . . . . . . . . . . 8 . . . . . . Authchips . | . . . . . . . . . . . . . . . . . . . . . . . Time 361 | . . . . . . . . . . . . . . . . 361 . . . . . . Total Robot Build Rating 32 | . . . . . . . . . . . . . . . . 32 . . . . . . Part Schematics Acquired 22 | . . . . . 1 . . . . . . . . 19 . 1 . 1 . . . . Parts Built 3 | . . . . . . . . . . . 1 . . . . . . 2 . . . . Authchips 1 | . . . . . . . . . . . 1 . . . . . . . . . . . Time 174 | . . . . . . . . . . . 116 . . . . . . 58 . . . . Total Part Build Rating 17 | . . . . . . . . . . . 3 . . . . . . 14 . . . . Part Studies Acquired . | . . . . . . . . . . . . . . . . . . . . . . . Parts Repaired . | . . . . . . . . . . . . . . . . . . . . . . . Time . | . . . . . . . . . . . . . . . . . . . . . . . Parts Recycled . | . . . . . . . . . . . . . . . . . . . . . . . Recycled Matter . | . . . . . . . . . . . . . . . . . . . . . . . Retrieved Matter . | . . . . . . . . . . . . . . . . . . . . . . . Retrieved Components . | . . . . . . . . . . . . . . . . . . . . . . . Parts Scanalyzed 2 | . . . . . 1 . . . . . . . . . . . . 1 . . . . Part Schematics Acquired 2 | . . . . . 1 . . . . . . . . . . . . 1 . . . . Parts Damaged . | . . . . . . . . . . . . . . . . . . . . . . . Bothacking | -11 -10 -10 -10 -9 -8 -8 -8 -8 -8 -8 -7 -7 -7 -7 -6 -6 -6 -6 -6 -6 -6 -6 ------------ Run | Yrd Mat Min Exi Min Mat Gar Mat Gar Mat Gar Fac Low Low Zio Pro Fac Was Fac Ext Cet Arc Hub Used RIF Installer . | . . . . . . . . . . . . . . . . . . . . . . . Robots Hacked 1 | . . . . . . . . . . . . . . . . 1 . . . . . . Non-combat 1 | . . . . . . . . . . . . . . . . 1 . . . . . . Combat . | . . . . . . . . . . . . . . . . . . . . . . . Robot Hacks Applied 1 | . . . . . . . . . . . . . . . . 1 . . . . . . find_chute 1 | . . . . . . . . . . . . . . . . 1 . . . . . . Relay Couplers Released 23 | . . . . . . 8 . 5 . 10 . . . . . . . . . . . . Machine Destruction 23 | . . . . . . 8 . 5 . 10 . . . . . . . . . . . . Fabnet Peak Effective % . | . . . . . . . . . . . . . . . . . . . . . . . Robots Rewired 19 | . . . . . . 4 . 2 . 9 . . 3 . 1 . . . . . . . Allies Hacked . | . . . . . . . . . . . . . . . . . . . . . . . Hacks Repelled . | . . . . . . . . . . . . . . . . . . . . . . . Allies | -11 -10 -10 -10 -9 -8 -8 -8 -8 -8 -8 -7 -7 -7 -7 -6 -6 -6 -6 -6 -6 -6 -6 -------- Run | Yrd Mat Min Exi Min Mat Gar Mat Gar Mat Gar Fac Low Low Zio Pro Fac Was Fac Ext Cet Arc Hub Total Allies 62 | . . . . 7 1 4 . 2 2 11 . . 3 . 1 8 19 . 3 . . 1 Largest Group 19 | . . . . 7 6 4 4 2 4 8 8 . 3 3 4 6 19 18 3 . . 1 Highest-Rated Group 684 | . . . . 143 112 57 57 70 90 218 218 . 60 60 80 150 684 659 221 . . 28 Highest-Rated Ally 159 | . . . . 31 31 21 21 39 39 40 40 . 20 20 20 56 50 50 159 . . 28 Initial Warlord ECA Mod 16 | . . . . . . . 6 6 11 11 16 16 16 16 15 15 15 15 15 15 15 15 Total Orders 16 | . . . . . . . 3 . 1 . 9 . . . . 2 . . . . . 1 STAY 13 | . . . . . . . 2 . 1 . 8 . . . . 2 . . . . . . FOLLOW 2 | . . . . . . . 1 . . . 1 . . . . . . . . . . . RETURN 1 | . . . . . . . . . . . . . . . . . . . . . . 1 Ally Attacks 522 | . . . . . 55 . 23 . 27 29 34 . . . 23 11 97 166 47 . . 10 Total Damage 13927 | . . . . . 692 . 286 . 368 635 956 . . . 440 375 3991 5013 1122 . . 49 Kills 93 | . . . . . 7 . 6 . 5 3 8 . . . 3 5 7 40 9 . . . Allies Corrupted 3 | . . . . . . . . . . 2 . . . . . . . 1 . . . . Allies Melted . | . . . . . . . . . . . . . . . . . . . . . . . Intel | -11 -10 -10 -10 -9 -8 -8 -8 -8 -8 -8 -7 -7 -7 -7 -6 -6 -6 -6 -6 -6 -6 -6 ------- Run | Yrd Mat Min Exi Min Mat Gar Mat Gar Mat Gar Fac Low Low Zio Pro Fac Was Fac Ext Cet Arc Hub Active Infowar (turns) 15320 | 16 971 228 315 538 802 1703 622 512 623 720 1092 329 468 459 430 1399 169 1588 1744 143 144 305 Sensors 3622 | . . . . . . . . . . . . . . . . . . 1286 1744 143 144 305 Terrain 11 | 11 . . . . . . . . . . . . . . . . . . . . . . Seismic 13410 | 5 971 228 315 538 800 58 370 512 623 720 1092 329 468 459 430 1399 169 1588 1744 143 144 305 Machine Analysis 13312 | . . . . 60 802 1703 622 512 623 720 1092 329 468 459 430 1399 169 1588 1744 143 144 305 Triangulation 6189 | . . . . . . . . . . . 820 329 468 459 430 1399 169 1288 377 1 144 305 Robot Analysis Total 101 | . 2 . . . . . . . 5 . . . . . . . . . 94 . . . Derelict Logs Recovered 9 | . . 1 . 1 . . . . . . . 2 2 1 2 . . . . . . . Drone Launches 11 | . . . . . . . . . . . . . . . . . . . . . . 11 Drone Recoveries 11 | . . . . . . . . . . . . . . . . . . . . . . 11 Exploration | -11 -10 -10 -10 -9 -8 -8 -8 -8 -8 -8 -7 -7 -7 -7 -6 -6 -6 -6 -6 -6 -6 -6 ------------- Run | Yrd Mat Min Exi Min Mat Gar Mat Gar Mat Gar Fac Low Low Zio Pro Fac Was Fac Ext Cet Arc Hub Turns Passed 15387 | 81 971 230 315 538 802 1703 622 512 623 720 1092 329 468 459 430 1399 169 1588 1744 143 144 305 Spaces Moved 25449 | 51 1132 645 579 932 1616 885 1399 819 1529 1234 1694 1142 1163 1124 980 3031 320 3342 699 204 392 537 Core 304 | 51 253 . . . . . . . . . . . . . . . . . . . . . Treads . | . . . . . . . . . . . . . . . . . . . . . . . Legs . | . . . . . . . . . . . . . . . . . . . . . . . Wheels . | . . . . . . . . . . . . . . . . . . . . . . . Hover . | . . . . . . . . . . . . . . . . . . . . . . . Flight 25145 | . 879 645 579 932 1616 885 1399 819 1529 1234 1694 1142 1163 1124 980 3031 320 3342 699 204 392 537 Fastest Speed 6 | 50 26 26 26 26 26 26 26 26 26 26 26 26 26 26 26 6 22 13 6 22 22 6 Average Speed 25 | 50 34 26 26 26 26 26 26 26 26 26 26 26 26 26 26 24 22 21 20 22 22 19 Slowest Speed 101 | 50 50 26 26 26 28 26 101 26 26 26 26 26 26 26 26 27 22 22 96 22 22 22 Overloaded Moves 184 | . . . . . . . . . . . . . . . . 40 . 8 64 . . 72 Propulsion Burnouts . | . . . . . . . . . . . . . . . . . . . . . . . Robots Hopped 267 | . 9 8 . 14 41 2 34 . 36 . 24 1 1 . 1 56 . 15 16 . . 9 Potential Cave-ins . | . . . . . . . . . . . . . . . . . . . . . . . Cave-ins Triggered . | . . . . . . . . . . . . . . . . . . . . . . . Exploration Rate (%) 79 | 3 96 97 63 100 99 89 86 85 98 91 29 98 98 88 93 48 92 70 72 75 100 53 Regions Visited 22 Branch Regions 11 Pre-discovered Areas 12 | . 2 . . . 2 . 1 . 1 . . 2 2 2 . . . . . . . . Known Exits Taken 12 | . . . . . 1 . 1 . 1 . 1 1 1 1 1 . . 1 1 1 1 . Unknown Exits Taken 5 | 1 1 1 1 1 . . . . . . . . . . . . . . . . . . Scrap Searched 16 | . . 3 . 2 . . . . . . . 3 4 3 1 . . . . . . . Spaces Dug 26 | . . . . . . . 2 . 1 . . . . . . 13 . . . . . 10 Terrain Destroyed 104 | . . . . . . . 2 . 1 . . . . . 3 13 . 75 . . . 10 Melee 26 | . . . . . . . 2 . 1 . . . . . . 13 . . . . . 10 Projectile 6 | . . . . . . . . . . . . . . . 3 . . 3 . . . . AOE 72 | . . . . . . . . . . . . . . . . . . 72 . . . . Terrain Rammed . | . . . . . . . . . . . . . . . . . . . . . . . Walls Destroyed . | . . . . . . . . . . . . . . . . . . . . . . . Machines Disabled . | . . . . . . . . . . . . . . . . . . . . . . . Actions | -11 -10 -10 -10 -9 -8 -8 -8 -8 -8 -8 -7 -7 -7 -7 -6 -6 -6 -6 -6 -6 -6 -6 --------- Run | Yrd Mat Min Exi Min Mat Gar Mat Gar Mat Gar Fac Low Low Zio Pro Fac Was Fac Ext Cet Arc Hub Total 33052 | 84 1581 675 704 1169 1838 2350 1563 1087 1682 1594 2185 1169 1320 1287 1129 3547 409 4033 2231 286 435 694 Wait 4831 | 19 352 11 56 177 65 1401 46 98 89 98 120 7 116 157 66 311 55 161 1369 1 . 56 Move 24937 | 50 1113 628 578 903 1542 879 1333 818 1459 1233 1648 1139 1160 1123 977 2928 319 3315 676 203 391 522 Hop 223 | . 9 8 . 14 32 2 31 . 33 . 21 1 1 . 1 47 . 11 6 . . 6 Pick Up 47 | . 1 2 12 5 5 1 . 1 . 2 3 3 1 3 . 1 1 4 . 2 . . Fast Attach 29 | 4 7 . . . 5 . . . . . 1 . . . . 3 3 3 2 . . 1 Attach 9 | . . . . 2 2 . . . . . 3 . . . . . . . . 1 1 . Detach . | . . . . . . . . . . . . . . . . . . . . . . . Swap 98 | 2 2 3 5 1 10 1 12 . 6 1 2 . . 3 1 25 . 5 5 5 3 6 Drop 63 | . 2 2 11 3 7 . 6 . . 3 4 2 1 . . 7 4 5 1 3 2 . Fire 1740 | 9 65 15 25 43 113 12 103 69 73 97 313 9 16 . 51 150 21 338 109 33 30 46 Melee 29 | . . . . . . . 2 . 1 . . . . 1 . 14 . . . . . 11 Ram . | . . . . . . . . . . . . . . . . . . . . . . . Kick . | . . . . . . . . . . . . . . . . . . . . . . . Crush . | . . . . . . . . . . . . . . . . . . . . . . . Escape Stasis 204 | . . . . . . . . 78 . 50 . . . . . 8 . . 30 . . 38 Rewire 156 | . . . . . . 54 . 6 . 82 . . 9 . 5 . . . . . . . Trap . | . . . . . . . . . . . . . . . . . . . . . . . Miscellaneous 686 | . 30 6 17 21 57 . 30 17 21 28 70 8 16 . 28 53 6 191 33 38 8 8 Route ------- -11/Scrapyard -10/Materials (discovered 5 exits: [*Mat x3] / *Min / [*Sub]) -10/Mines (discovered 3 exits: [*Mat x2] / *Exi) -10/Exiles -9/Mines (discovered 2 exits: *Mat x2) -8/Materials (discovered 4 exits: *Fac x3 / Gar) -8/Garrison (discovered 3 exits: *Mat x3) -8/Materials (discovered 3 exits: *Fac x2 / Gar) -8/Garrison (discovered 3 exits: *Mat x3) -8/Materials (discovered 4 exits: *Fac x3 / Gar) -8/Garrison (discovered 3 exits: *Fac x3) -7/Factory (discovered 4 exits: *Fac x2 / *Low x2) -7/Lower Caves -7/Lower Caves (discovered 2 exits: *Fac / *Zio) -7/Zion -6/Proximity Caves -6/Factory (discovered 4 exits: *Fac x2 / *Low x2) -6/Waste -6/Factory (discovered 6 exits: *Fac x3 / *Low x2 / *Ext) -6/Extension (discovered 2 exits: *Fac / *Cet) -6/Cetus (discovered 2 exits: *Fac / *Arc) -6/Archives (discovered 3 exits: *Fac / *Hub x2) -6/Hub_04(d) History --------- Turn | Location | Event 1 | -11/Scrapyard | Upgraded with Propulsion slot (x1) 1 | -11/Scrapyard | Upgraded with Weapon slot (x1) 12 | -11/Scrapyard | Discovered new exit (range 15) 82 | -11/Scrapyard | Entered Materials 83 | -10/Materials | Met a group of wandering Federalists 135 | -10/Materials | Discovered new exit (range 5) 295 | -10/Materials | Discovered new exit (range 16) 307 | -10/Materials | Build established: Mutant 481 | -10/Materials | Reached level 2 492 | -10/Materials | Upgraded with Utility slot (x1) 492 | -10/Materials | Upgraded with Weapon slot (x1) 613 | -10/Materials | Discovered new exit (range 3) 656 | -10/Materials | Reached level 3 656 | -10/Materials | Upgraded with Propulsion slot (x1) 656 | -10/Materials | Upgraded with Weapon slot (x1) 682 | -10/Materials | Discovered new exit (range 16) 695 | -10/Materials | Build established: Sprinter 820 | -10/Materials | Discovered new exit (range 12) 926 | -10/Materials | Reached level 4 954 | -10/Materials | Upgraded with Propulsion slot (x1) 1053 | -10/Materials | Entered Mines 1055 | -10/Mines | Reached level 5 1092 | -10/Mines | Discovered new exit (range 8) 1132 | -10/Mines | Discovered new exit (range 8) 1139 | -10/Mines | Received a Rocket Launcher from a helpful Derelict 1223 | -10/Mines | Learned Materials security intel 1237 | -10/Mines | Found the Drone Emporium 1237 | -10/Mines | Found Prototype Device 1237 | -10/Mines | Identified Splice Drone Bay 1268 | -10/Mines | Deemed a non-threat by the Exiles lab entrance 1281 | -10/Mines | Discovered new exit (range 5) 1283 | -10/Mines | Entered Exiles 1290 | -10/Exiles | Met 8R-AWN 1294 | -10/Exiles | Met EX-HEX 1301 | -10/Exiles | Met EX-BIN 1305 | -10/Exiles | Aligned with FarCom system 1305 | -10/Exiles | Given EX-Vault access code 1311 | -10/Exiles | Opened EX-Vault 1313 | -10/Exiles | Found Longsword +1 1320 | -10/Exiles | Warned to stay clear of 0b10 Research branches 1337 | -10/Exiles | Met EX-DEC 1346 | -10/Exiles | Discovered new exit (range 14) 1412 | -10/Exiles | Attacked by the Exiles 1533 | -10/Exiles | Core integrity fell below 50% 1548 | -10/Exiles | Destroyed 8R-AWN 1565 | -10/Exiles | Found Prototype Device 1565 | -10/Exiles | Identified AS-neutralizer No. 17b 1598 | -10/Exiles | Left Exiles lab with Longsword +1 1598 | -10/Exiles | Entered Mines 1600 | -9/Mines | Reached level 6 1650 | -9/Mines | Met a Derelict bent on vengeance 1703 | -9/Mines | Learned Materials non-interactive machine intel 1703 | -9/Mines | Discovered new exit (range 10) 1782 | -9/Mines | Met a Derelict testing a Signal Generator 1783 | -9/Mines | Found Signal Generator 1811 | -9/Mines | Received a Mining Laser from a helpful Derelict 1862 | -9/Mines | Discovered new exit (range 9) 1892 | -9/Mines | Destroyed 7 combat bots 1936 | -9/Mines | Reached level 7 2027 | -9/Mines | Upgraded with Utility slot (x2) 2068 | -9/Mines | Assisted by bots powering up and referring to "LRC-V3" 2136 | -9/Mines | Entered Materials 2136 | -8/Materials | Accompanied by 6 allies 2138 | -8/Materials | Loaded intel: 35 non-interactive machine locations 2138 | -8/Materials | Reached level 8 2141 | -8/Materials | Led the pair of lost Derelicts to an unsafe place 2184 | -8/Materials | Garrison activated, responded to threat 2190 | -8/Materials | Reached level 9 2201 | -8/Materials | Upgraded with Utility slot (x2) 2255 | -8/Materials | Reached level 10 2291 | -8/Materials | Destroyed 7 combat bots 2321 | -8/Materials | Reached level 11 2326 | -8/Materials | Upgraded with Utility slot (x1) 2342 | -8/Materials | Destroyed 7 combat bots 2347 | -8/Materials | Build established: Scavenger-Sprinter 2347 | -8/Materials | Discovered new exit (range 8) 2436 | -8/Materials | Discovered new exit (range 3) 2494 | -8/Materials | Garrison activated, responded to threat 2609 | -8/Materials | Discovered new exit (range 14) 2629 | -8/Materials | Reached level 12 2750 | -8/Materials | Upgraded with Power slot (x1) 2869 | -8/Materials | Garrison activated, responded to threat 2925 | -8/Materials | Sterilization system engaged 2925 | -8/Materials | Non-combat units ordered to evacuate 2937 | -8/Materials | Identified exit to Garrison 2938 | -8/Materials | Entered Garrison 2938 | -8/Garrison | Discovered recently destroyed garrison 2940 | -8/Garrison | Reached level 13 2992 | -8/Garrison | Discovered new exit (range 13) 2998 | -8/Garrison | Identified exit to Materials 3016 | -8/Garrison | Garrison Relay disabled 3033 | -8/Garrison | Learned Materials security intel 3059 | -8/Garrison | Garrison Relay disabled 3064 | -8/Garrison | Discovered exit to Materials (range 11) 3085 | -8/Garrison | Garrison Relay disabled 3119 | -8/Garrison | Discovered exit to Materials (range 11) 3188 | -8/Garrison | Garrison Relay disabled 4477 | -8/Garrison | Attempted to access garrison exit controls, blocked by remote lockdown 4641 | -8/Garrison | Entered Materials 4641 | -8/Materials | Accompanied by 4 allies 4726 | -8/Materials | Garrison activated, responded to threat 4937 | -8/Materials | Discovered new exit (range 15) 5041 | -8/Materials | First assault squad dispatched 5056 | -8/Materials | Reached level 14 5191 | -8/Materials | Destroyed 31 combat bots 5209 | -8/Materials | Discovered new exit (range 11) 5231 | -8/Materials | Sterilization system engaged 5231 | -8/Materials | Non-combat units ordered to evacuate 5255 | -8/Materials | Destroyed 7 combat bots 5263 | -8/Materials | Identified exit to Garrison 5263 | -8/Materials | Entered Garrison 5269 | -8/Garrison | Triggered checkpoint 5325 | -8/Garrison | Triggered checkpoint 5370 | -8/Garrison | Destroyed 12 combat bots 5411 | -8/Garrison | Triggered checkpoint 5419 | -8/Garrison | Garrison Relay disabled 5438 | -8/Garrison | Reached level 15 5473 | -8/Garrison | Discovered new exit (range 13) 5542 | -8/Garrison | Discovered new exit (range 5) 5555 | -8/Garrison | Garrison Relay disabled 5640 | -8/Garrison | Garrison Relay disabled 5646 | -8/Garrison | Discovered new exit (range 13) 5775 | -8/Garrison | Entered Materials 5775 | -8/Materials | Accompanied by 2 allies 5921 | -8/Materials | Discovered new exit (range 16) 6019 | -8/Materials | Discovered new exit (range 15) 6062 | -8/Materials | Discovered new exit (range 14) 6133 | -8/Materials | Garrison activated, responded to threat 6175 | -8/Materials | First assault squad dispatched 6180 | -8/Materials | Destroyed 7 combat bots 6346 | -8/Materials | High security lockdown imminent 6361 | -8/Materials | Reached level 16 6382 | -8/Materials | Destroyed 11 combat bots 6388 | -8/Materials | Identified exit to Garrison 6398 | -8/Materials | Entered Garrison 6421 | -8/Garrison | Rescued a captive Derelict 6426 | -8/Garrison | Rescued a captive Derelict 6478 | -8/Garrison | Triggered checkpoint 6479 | -8/Garrison | Triggered checkpoint 6508 | -8/Garrison | Triggered checkpoint 6508 | -8/Garrison | Destroyed 11 combat bots 6542 | -8/Garrison | Garrison Relay disabled 6553 | -8/Garrison | Discovered new exit (range 8) 6585 | -8/Garrison | Destroyed 7 combat bots 6609 | -8/Garrison | Garrison Relay disabled 6654 | -8/Garrison | Discovered new exit (range 10) 6670 | -8/Garrison | Garrison Relay disabled 6672 | -8/Garrison | Garrison Relay disabled 6816 | -8/Garrison | Garrison Relay disabled 6830 | -8/Garrison | Triggered checkpoint 6850 | -8/Garrison | Triggered checkpoint 6859 | -8/Garrison | Discovered new exit (range 14) 6902 | -8/Garrison | Garrison Relay disabled 6916 | -8/Garrison | Triggered checkpoint 6920 | -8/Garrison | Triggered checkpoint 6933 | -8/Garrison | Triggered checkpoint 6956 | -8/Garrison | Destroyed 7 combat bots 7118 | -8/Garrison | Entered Factory 7118 | -7/Factory | Accompanied by 8 allies 7222 | -7/Factory | Garrison activated, responded to threat 7228 | -7/Factory | Reached level 17 7255 | -7/Factory | Build established: Commander-Sprinter 7259 | -7/Factory | High security lockdown imminent 7324 | -7/Factory | Discovered new exit (range 15) 7339 | -7/Factory | High security lockdown engaged 7339 | -7/Factory | Garrison activated, responded to threat 7368 | -7/Factory | Garrison activated, responded to threat 7390 | -7/Factory | Upgraded with Utility slot (x1) 7411 | -7/Factory | Fabricated Enh. Autogun? 7427 | -7/Factory | Discovered new exit (range 6) 7463 | -7/Factory | Discovered new exit (range 15) 7467 | -7/Factory | Destroyed 16 combat bots 7557 | -7/Factory | Discovered new exit (range 5) 7608 | -7/Factory | Reached level 18 7629 | -7/Factory | Destroyed 9 combat bots 7658 | -7/Factory | Build established: Scavenger-Sprinter 7885 | -7/Factory | Core integrity fell below 50% 7923 | -7/Factory | Core integrity fell below 20% 8023 | -7/Factory | Destroyed 53 combat bots 8113 | -7/Factory | Destroyed 7 combat bots 8156 | -7/Factory | Reached level 19 8185 | -7/Factory | Sterilization system engaged 8185 | -7/Factory | Non-combat units ordered to evacuate 8192 | -7/Factory | Destroyed 15 combat bots 8193 | -7/Factory | Identified exit to Lower Caves 8210 | -7/Factory | Entered Lower Caves 8231 | -7/Lower Caves | Met a Warlord Commander 8232 | -7/Lower Caves | Learned location of Warlord (-4) 8233 | -7/Lower Caves | Warlord Commander delivered Encrypted Comm Array 8236 | -7/Lower Caves | Found Encrypted Comm Array 8296 | -7/Lower Caves | Identified exit to Lower Caves 8539 | -7/Lower Caves | Entered another Lower Caves area 8560 | -7/Lower Caves | Discovered new exit (range 13) 8563 | -7/Lower Caves | Identified exit to Factory 8594 | -7/Lower Caves | Encountered a Warlord checkpoint 8654 | -7/Lower Caves | Discovered new exit (range 11) 8656 | -7/Lower Caves | Identified exit to Zion 8666 | -7/Lower Caves | Attacked by a delusional Derelict stockpiling Unaware 8749 | -7/Lower Caves | Learned location of Zion (-7) 8750 | -7/Lower Caves | Learned Armory stockpile data 8750 | -7/Lower Caves | Learned Armory security intel 8750 | -7/Lower Caves | Learned Research terminal intel 9007 | -7/Lower Caves | Entered Zion 9007 | -7/Zion | Accompanied by 3 allies 9034 | -7/Zion | System corruption cleaned by Quarantine Array 9047 | -7/Zion | Discovered new exit (range 11) 9121 | -7/Zion | Learned Factory terminal intel 9123 | -7/Zion | Learned Factory emergency access door positions 9211 | -7/Zion | Given the Hacking Drone Bay 9212 | -7/Zion | Found Prototype Device 9212 | -7/Zion | Identified Hacking Drone Bay 9215 | -7/Zion | Upgraded with Propulsion slot (x1) 9238 | -7/Zion | Met Imprinter 9309 | -7/Zion | Identified exit to Proximity Caves 9466 | -7/Zion | Entered Proximity Caves 9466 | -6/Proximity Caves | Accompanied by 3 allies 9469 | -6/Proximity Caves | Spotter reported a threat 9497 | -6/Proximity Caves | Learned Factory emergency access door positions 9505 | -6/Proximity Caves | Attracted the attention of an 0b10 outpost 9673 | -6/Proximity Caves | Reached level 20 9692 | -6/Proximity Caves | Discovered exit to Factory (range 8) 9693 | -6/Proximity Caves | Learned Factory terminal intel 9696 | -6/Proximity Caves | Attracted the attention of an 0b10 checkpoint 9772 | -6/Proximity Caves | Spotted B-75 Beast 9780 | -6/Proximity Caves | Destroyed B-75 Beast 9896 | -6/Proximity Caves | Entered Factory 9896 | -6/Factory | Accompanied by 1 ally 9897 | -6/Factory | Identified exit to Lower Caves 9899 | -6/Factory | Loaded intel: 28 terminal locations 9909 | -6/Factory | Discovered new exit (range 7) 9911 | -6/Factory | Identified exit to Factory 9983 | -6/Factory | Garrison activated, responded to threat 9997 | -6/Factory | Core integrity fell below 50% 10055 | -6/Factory | Discovered exit to Lower Caves (range 14) 10148 | -6/Factory | Fabricated H-77 Assassin? 10166 | -6/Factory | Discovered exit to Factory (range 13) 10297 | -6/Factory | Fabricated C-17 Slicer? 10469 | -6/Factory | Fabricated C-17 Slicer? 10844 | -6/Factory | Reached level 21 11072 | -6/Factory | Cargo convoy interrupted 11112 | -6/Factory | Garrison activated, responded to threat 11242 | -6/Factory | Found Prototype Device 11242 | -6/Factory | Identified Exp. Thermal Defense Suite 11245 | -6/Factory | Destroyed 18 combat bots 11251 | -6/Factory | Garrison activated, responded to threat 11295 | -6/Factory | Manually triggered Chute Trap 11295 | -6/Factory | Sucked down chute 11295 | -6/Factory | Entered Waste 11301 | -6/Waste | Warlord forces began an assault 11312 | -6/Waste | Spotted C-40 Crusher 11318 | -6/Waste | Spotted C-40 Crusher 11322 | -6/Waste | Allies destroyed C-40 Crusher 11327 | -6/Waste | Allies destroyed C-40 Crusher 11328 | -6/Waste | Spotted C-40 Crusher 11328 | -6/Waste | Spotted C-40 Crusher 11335 | -6/Waste | Allies destroyed C-40 Crusher 11335 | -6/Waste | Allies destroyed C-40 Crusher 11346 | -6/Waste | Spotted C-40 Crusher 11346 | -6/Waste | Spotted C-40 Crusher 11356 | -6/Waste | Allies destroyed C-40 Crusher 11356 | -6/Waste | Allies destroyed C-40 Crusher 11377 | -6/Waste | Discovered new exit (range 12) 11409 | -6/Waste | Identified exit to Factory 11464 | -6/Waste | Entered Factory 11464 | -6/Factory | Accompanied by 18 allies 11466 | -6/Factory | Loaded intel: 27 terminal locations 11477 | -6/Factory | Discovered exit to Lower Caves (range 5) 11493 | -6/Factory | Garrison activated, responded to threat 11662 | -6/Factory | Discovered exit to Lower Caves (range 8) 11765 | -6/Factory | Fabricated Lrn. Sensor Array (x2) 11766 | -6/Factory | Upgraded with Utility slot (x1) 11792 | -6/Factory | Reached level 22 11814 | -6/Factory | First assault squad dispatched 11830 | -6/Factory | High security lockdown imminent 11831 | -6/Factory | Discovered exit to Factory (range 17) 11910 | -6/Factory | High security lockdown engaged 11943 | -6/Factory | Discovered exit to Factory (range 9) 11960 | -6/Factory | Destroyed 10 combat bots 11964 | -6/Factory | Lost 6 allies 11965 | -6/Factory | Spotted B-75 Beast 11987 | -6/Factory | Destroyed B-75 Beast 12031 | -6/Factory | Discovered exit to Factory (range 7) 12072 | -6/Factory | Build established: Scavenger-Scout 12250 | -6/Factory | P-60 Hacker assimilated allied 7Y-GAR(m) 12278 | -6/Factory | Destroyed 9 combat bots 12396 | -6/Factory | Reached level 23 12456 | -6/Factory | Destroyed 32 combat bots 12472 | -6/Factory | Upgraded with Power slot (x1) 12572 | -6/Factory | Destroyed 8 combat bots 12597 | -6/Factory | Sterilization system engaged 12597 | -6/Factory | Non-combat units ordered to evacuate 12697 | -6/Factory | Combat units ordered to evacuate 12897 | -6/Factory | Ambient heat levels rising (+10) 13047 | -6/Factory | Ambient heat levels rising (+10) 13047 | -6/Factory | Discovered new exit (range 6) 13048 | -6/Factory | Identified exit to Extension 13052 | -6/Factory | Entered Extension 13074 | -6/Extension | Disrupted transfer network 13114 | -6/Extension | Rescued A7 13211 | -6/Extension | Unchained authorized (CL-0N3) 13402 | -6/Extension | First assault squad dispatched 14528 | -6/Extension | Rescued a captive Derelict 14529 | -6/Extension | Rescued a captive Derelict 14538 | -6/Extension | VW-V4B(g) reconstituted as Cetus Guard 14538 | -6/Extension | Destroyed 14 combat bots 14538 | -6/Extension | Spotted Cetus Guard 14541 | -6/Extension | Allies destroyed Cetus Guard 14541 | -6/Extension | Cetus Guard reconstituted as CL-0N3 14549 | -6/Extension | Spotted B-75 Beast 14562 | -6/Extension | Destroyed CL-0N3 14564 | -6/Extension | Extracted schematics, analyses from CL-0N3's data core 14566 | -6/Extension | High security lockdown imminent 14615 | -6/Extension | Destroyed B-75 Beast 14633 | -6/Extension | Spotted B-75 Beast 14646 | -6/Extension | High security lockdown engaged 14650 | -6/Extension | Extracted ID and sensor layout for unrecognized location from A7's data core 14666 | -6/Extension | Destroyed 14 combat bots 14736 | -6/Extension | Discovered exit to Factory (range 10) 14737 | -6/Extension | Discovered new exit (range 6) 14786 | -6/Extension | Destroyed 7 combat bots 14796 | -6/Extension | Identified exit to Cetus 14796 | -6/Extension | Entered Cetus 14800 | -6/Cetus | Spotted Cetus Guard 14800 | -6/Cetus | Spotted Cetus Guard 14803 | -6/Cetus | Core integrity fell below 20% 14803 | -6/Cetus | Destroyed Cetus Guard 14806 | -6/Cetus | Spotted Cetus Guard 14808 | -6/Cetus | Destroyed Cetus Guard 14815 | -6/Cetus | Destroyed Cetus Guard 14816 | -6/Cetus | Spotted Cetus Guard 14822 | -6/Cetus | Destroyed Cetus Guard 14874 | -6/Cetus | Discovered new exit (range 16) 14877 | -6/Cetus | Identified exit to Archives 14883 | -6/Cetus | Spotted Cetus Guard 14883 | -6/Cetus | Spotted Cetus Guard 14886 | -6/Cetus | Spotted Cetus Guard 14886 | -6/Cetus | Spotted Cetus Guard 14889 | -6/Cetus | Destroyed Cetus Guard 14894 | -6/Cetus | Destroyed Cetus Guard 14895 | -6/Cetus | Destroyed Cetus Guard 14901 | -6/Cetus | Discovered exit to Factory (range 16) 14906 | -6/Cetus | Destroyed Cetus Guard 14908 | -6/Cetus | Met Revision 17 14939 | -6/Cetus | Entered Archives 14958 | -6/Archives | Discovered new exit (range 15) 14968 | -6/Archives | Discovered new exit (range 14) 14983 | -6/Archives | Discovered exit to Factory (range 17) 14989 | -6/Archives | Identified exit to Hub_04(d) 15027 | -6/Archives | Unable to access archive contents 15083 | -6/Archives | Entered Hub_04(d) 15105 | -6/Hub_04(d) | Unchained authorized (6S-H0T) 15142 | -6/Hub_04(d) | Garrison activated, responded to threat 15294 | -6/Hub_04(d) | Network Hub disabled 15312 | -6/Hub_04(d) | Spotted Lightning 15315 | -6/Hub_04(d) | Spotted Lightning 15320 | -6/Hub_04(d) | Spotted Lightning 15326 | -6/Hub_04(d) | Spotted Lightning 15328 | -6/Hub_04(d) | Spotted Lightning 15335 | -6/Hub_04(d) | Disrupted transfer network 15351 | -6/Hub_04(d) | Spotted Lightning 15351 | -6/Hub_04(d) | Spotted Lightning 15388 | -6/Hub_04(d) | Destroyed by H-66 Slayer with Heavy Assault Rifle Last Messages --------------- 15335_ ALERT: Transfer network disrupted, dispatching garrison force. 15336_ EMDS Slug penetrates Wall. 15336_ Penetrated by EMDS Slug. 15337_ Penetrated by Slug. 15338_ Triggered Blade Trap. 15338_ Massive razor-sharp blades shoot up from within the floor. 15338_ Enh. Autogun severed. 15338_ Acquired Enh. Autogun. 15340_ W-25 Informer sends out distress signal. 15341_ W-25 Informer destroyed. 15349_ Y-54 Guardian suffers critical hit (Destroy). 15349_ Y-54 Guardian destroyed. 15351_ Upgraded: Core Integrity (+100) 15373_ System corrupted: Adv. Weapon Cycler fused. 15379_ EMDS Slug penetrates Wall. 15384_ Acquired 105 matter. 15384_ Acquired 24 matter. 15385_ Penetrated by Slug. 15385_ Acquired 3 matter. 15385_ Penetrated by Slug. Map ----- +----------------------------------------------------+ | ???????????????????????????????????????????# " | | ???????????????????????????????????????????# "" | | ???????????????????????????????????????????# """ | | ???????????????????????????????????????????# """" | | ??????????????????????????????############## """ | | ??????????????????????????????# # "" | | ??????????????????????????????# "" # " | | ??????????????????????????????# """ "" # | | ??????????????????????????????# T" # * | | ??????????????????????????????# """ "" "#####+ | | ??????????????????????????????# "" ####?# | | ??????????????????????????????# """ #h # | | ??????????????????????????????# h h[ " # | | ?????????????????????????????## """ """ # " + | | ?????????????????????????????# # " # | | ?????????????????????????????## =""" """ # # | | ??????????????????????????????#*! %= ####?# | | ??????????????????????#++#????####+######/####### | | ?????????????????????## ######### h Yh | | ?????????????????????#; * H h ig | | ?????????????????????## #########g###########+##+ | | ??????????????????????# ##] #?????# | | ?????????????????????## ## """" ""#?????# | | ????????????????###### # """" ""#?????# """ " | | ???????????""""?# # """" T"#?????# | | ???????????""""?# @/ """" ""####### """ " | | ???????????""""?# ### # ""# # | | ???????????""""?# ???##h### ! # # """ " | | ????????????????+?????# ??# ! + " # | | ??????????????????????#+??#######+### # """ " | | ????????????????????????????????# #?# # ? | | ????????????????????# ?????#### ###### ## """ " | | ????????????????????# """"?# # ##???? | | ????????????????????+ """"?# " [ " + #?????### | | ????????????????????# """"?# " " # #?????# | | ????????????????????# """"?# " " # ####### | | ????????????????????# ?# !!* ?# | | A???????????????????# """"?# !=* ?+ | | ????????????????????# """"?# != ??# ! | | ????????????????????# """"?# !??###/####### | | ????????????????????# """"?#######?????# #! | | ????????????????????# ???????????????# "" ### | | ?????????????""""???##"##??????????????# "" ### | | ?????????????""""???#"""###????????????# " # | | ?????????????""""???##! #????????????# # | | ?????????????""""????# ############## ]# | | ?????????????????????# # # # | | ?????????????????????# " " # | | ?????????????????????# """""""""""""" # | | ?????????????????????# "" " # | +----------------------------------------------------+ Best States ------------- Heat Dissipation 91 Energy Generation 54 Energy Capacity 650 Matter Stores 500 Matter Capacity 500 Sight Range 17 Robot Scan Range 36 Terrain Scan Range 16 Terrain Scan Density 10 Additional Mass Support 12 Armor Coverage 150 Resistance: TH 10 Weapon Cycling 25 Evasion (%) 66 Melee Accuracy 6 Kinecelleration 30 Offensive Hacking 5 Authchip Count 1 Item Schematics ----------------- Enh. Autogun | -8/Materials | Scanalyzed Force Field | -7/Zion | Archive Imp. Carbon-fiber Leg | -7/Zion | Archive Imp. Weapon Cycler | -7/Zion | Archive Imp. Thermal Shield | -7/Zion | Archive Imp. Cooling System | -7/Zion | Archive Magnetic Acceleration Cannon | -7/Zion | Archive Corruption Screen | -7/Zion | Archive Hvy. Plasma Cannon | -7/Zion | Archive Arm. Huge Wheel | -7/Zion | Archive Adv. Signal Interpreter | -7/Zion | Archive Shock Absorption System | -7/Zion | Archive Stasis Canceller | -7/Zion | Archive Hvy. Laser | -7/Zion | Archive Imp. Deuterium Engine | -7/Zion | Archive Thermic Laser | -7/Zion | Archive Battle Cannon | -7/Zion | Free Flamer | -7/Zion | Free Bore Cannon | -7/Zion | Free Phasing Sabre | -7/Zion | Free Prc. Beam Rifle | -6/Factory | Extracted Lrn. Sensor Array | -6/Factory | Scanalyzed Robot Schematics ------------------ B-48 Gladiator | -7/Zion | Archive S-27 Virus | -7/Zion | Archive X-57 Shotgunner | -7/Zion | Archive H-77 Assassin | -7/Zion | Archive C-17 Slicer | -6/Factory | Hacked K-01 Serf | -6/Extension | Archive T-07 Excavator | -6/Extension | Archive A-02 Transporter | -6/Extension | Archive A-15 Conveyor | -6/Extension | Archive R-06 Scavenger | -6/Extension | Archive R-10 Processor | -6/Extension | Archive M-14 Sweeper | -6/Extension | Archive M-22 Extractor | -6/Extension | Archive M-30 Cleanser | -6/Extension | Archive M-13 Machinist | -6/Extension | Archive M-28 Smith | -6/Extension | Archive M-36 Artificer | -6/Extension | Archive O-16 Technician | -6/Extension | Archive O-24 Administrator | -6/Extension | Archive O-32 Director | -6/Extension | Archive W-16 Scout | -6/Extension | Archive W-25 Informer | -6/Extension | Archive W-44 Eye | -6/Extension | Archive S-10 Pest | -6/Extension | Archive S-43 Plague | -6/Extension | Archive G-34 Mercenary | -6/Extension | Archive G-47 Trooper | -6/Extension | Archive G-50 Soldier | -6/Extension | Archive G-67 Veteran | -6/Extension | Archive G-73 Enforcer | -6/Extension | Archive B-36 Bruiser | -6/Extension | Archive B-60 Warrior | -6/Extension | Archive B-74 Champion | -6/Extension | Archive L-31 Rogue | -6/Extension | Archive L-41 Fighter | -6/Extension | Archive L-61 Swordsman | -6/Extension | Archive Y-45 Defender | -6/Extension | Archive Y-54 Guardian | -6/Extension | Archive Y-64 Sentinel | -6/Extension | Archive Y-72 Warden | -6/Extension | Archive D-53 Grenadier | -6/Extension | Archive D-63 Destroyer | -6/Extension | Archive D-83 Annihilator | -6/Extension | Archive X-62 Marksman | -6/Extension | Archive X-67 Chaingunner | -6/Extension | Archive X-72 Disruptor | -6/Extension | Archive X-77 Beamer | -6/Extension | Archive X-82 Rainmaker | -6/Extension | Archive X-87 Electro | -6/Extension | Archive H-55 Commando | -6/Extension | Archive H-66 Slayer | -6/Extension | Archive H-88 Terminator | -6/Extension | Archive P-60 Hacker | -6/Extension | Archive P-70 Sage | -6/Extension | Archive P-80 Master | -6/Extension | Archive Fabricated ------------ Enh. Autogun | x1 | -7/Factory | Authchip H-77 Assassin | x2 | -6/Factory C-17 Slicer | x3 | -6/Factory C-17 Slicer | x3 | -6/Factory Lrn. Sensor Array | x2 | -6/Factory Repaired ---------- Nothing Studied --------- None Alien Tech Used ----------------- None Achievements -------------- None Challenges ------------ None RPGLIKE | -11 -10 -10 -10 -9 -8 -8 -8 -8 -8 -8 -7 -7 -7 -7 -6 -6 -6 -6 -6 -6 -6 -6 --------- Run | Yrd Mat Min Exi Min Mat Gar Mat Gar Mat Gar Fac Low Low Zio Pro Fac Was Fac Ext Cet Arc Hub Levels Raised 22 | . 3 1 . 2 5 1 1 1 1 . 3 . . . 1 1 . 2 . . . . XP Earned 37161 | 3000 5477 1350 243 2910 7742 654 2033 990 1133 805 3697 173 127 73 1218 1898 38 2705 483 147 83 182 XP Spent 35035 | 2800 4600 500 800 2900 7770 1250 1780 950 . . 3600 . . 2900 . 335 . 4625 . 65 . 160 Upgrades 67 | 11 6 1 2 3 10 1 6 4 . . 3 . . 2 . 6 . 9 . 1 . 2 Power Slot 2 | . . . . . 1 . . . . . . . . . . . . 1 . . . . Propulsion Slot 4 | 1 2 . . . . . . . . . . . . 1 . . . . . . . . Utility Slot 8 | . 1 . . 2 3 . . . . . 1 . . . . . . 1 . . . . Weapon Slot 3 | 1 2 . . . . . . . . . . . . . . . . . . . . . Core Integrity 7 | . . . . . . . . . . . . . . . . 4 . . . 1 . 2 Heat Dissipation 11 | 5 . . . . 2 . 4 . . . . . . . . . . . . . . . Energy Generation 2 | . 1 . . . 1 . . . . . . . . . . . . . . . . . Matter Storage 4 | . . . . . . . . 4 . . . . . . . . . . . . . . Mass Support 2 | 2 . . . . . . . . . . . . . . . . . . . . . . Inventory Capacity 6 | 1 . 1 1 1 . 1 . . . . . . . 1 . . . . . . . . Sight Range 1 | . . . . . . . . . . . . . . . . 1 . . . . . . Sensor Range 9 | . . . 1 . . . . . . . . . . . . 1 . 7 . . . . Ranged Accuracy 4 | 1 . . . . 2 . 1 . . . . . . . . . . . . . . . Hack Attack % 1 | . . . . . . . 1 . . . . . . . . . . . . . . . KI Damage % 3 | . . . . . 1 . . . . . 2 . . . . . . . . . . . Protomatter Created 11295 | . 459 114 105 336 954 . 919 326 468 896 2077 55 152 . 252 909 . 2224 584 296 60 109 Integrity Restored 13911 | . 544 78 364 392 1139 . 586 349 286 440 1395 165 342 . 632 1206 123 4003 636 888 173 170 Core 11233 | . 421 60 353 246 776 . 450 253 227 308 1200 165 342 . 483 1206 123 2926 536 888 136 134 Parts 2678 | . 123 18 11 146 363 . 136 96 59 132 195 . . . 149 . . 1077 100 . 37 36 Protomatter Decayed 5018 | . 150 75 40 149 534 . 433 97 310 884 1064 . . . 101 51 . 896 182 . . 52 Game ------ Seed WarpScrapoidComputer Manual? 0 Play Time 03:11:50 Cumulative 543.2 hours Start 2026.01.09 @ 18:28:59 End 2026.01.11 @ 10:42:57 Sessions 9 Manual Loads 0 Difficulty Rogue Special Mode Winter2019/RPGLIKE Game No. 201 Rogue 47 Adventurer 154 Explorer 0 Win Type - Total 20 Types 4/4/3/3/2/1/0/1/1/1 Lore% 95 Gallery% 88 Achievement% 61 Wizard Run 0 Options --------- Layout 0 ASCII 0 Keyboard 0 Movement Numpad Keybinds 0 Fullscreen 2 Font 18/SmallcapsGlow Map View 76x50 Zoom Use 0% Tactical HUD 1 Map Filters NONE Filters NONE Steam 1 RUN: c5137859-3b3e-4075-8a4e-51e4535d7502